Cogmind - Beta 14 @@@ ROGUE MODE // 2024.11.14 @ 15:51:57 Player: gallo Result: Self-destructed Performance ------------- Evolutions (2) 1000 Regions Visited (3) 600 Robots Destroyed (45) 225 Value Destroyed (1197) 1197 Prototype IDs (3) 60 Alien Tech Used (0) 0 Bonus (76) 76 TOTAL SCORE: 3158 Bonus ------- High Alert Combat Kills 76 Cogmind --------- Core Integrity 534/550 Matter 117/300 Energy 415/415 System Corruption 0% Temperature Warning (353) Movement Flying (197) Ox2 Location -8/Materials Parts ------- > --- POWER (2) -------- Ion Engine Improved Ion Engine > --- PROPULSION (3) --- Xenon Bombardment Thruster Xenon Bombardment Thruster > --- UTILITY (3) ------ Small Storage Unit Targeting Computer Improved Trap Extractor (0/6) > --- WEAPON (3) ------- Advanced Beam Cannon Mini Grenade Launcher Mace > --- INVENTORY (8) ---- Ion Engine Improved Ion Engine Aluminum Leg Improved Aluminum Leg Xenon Bombardment Thruster Transport Network Coupler Improved Medium Laser Hammer Peak State ------------ > --- POWER ------------ Ion Engine Improved Ion Engine > --- PROPULSION ------- Xenon Bombardment Thruster Xenon Bombardment Thruster Xenon Bombardment Thruster > --- UTILITY ---------- Small Storage Unit Targeting Computer Improved Trap Extractor > --- WEAPON ----------- Advanced Beam Cannon Mini Grenade Launcher Mace > --- INVENTORY -------- Ion Engine Improved Ion Engine Aluminum Leg Improved Aluminum Leg Xenon Bombardment Thruster Transport Network Coupler Improved Medium Laser Hammer [Rating: 29] Favorites ----------- Power Ion Engine Engine Ion Engine Propulsion Aluminum Leg Leg Aluminum Leg Wheel Compact Wheel Flight Unit Xenon Bombardment Thruster Utility Small Storage Unit Device Heat Sink Storage Small Storage Unit Processor Targeting Computer Weapon EM Pulse Gun Energy Gun EM Pulse Gun Energy Cannon Advanced Beam Cannon Launcher Grenade Launcher Impact Weapon Hammer Build | -11 -10 -9 -8 ------- Run | Yrd Mat Mat Mat Slots Evolved 4 | . . 2 2 Power 1 | . . 1 . Propulsion 1 | . . . 1 Utility 1 | . . 1 . Weapon 1 | . . . 1 Parts Attached 44 | 6 8 23 7 Power 8 | 1 1 6 . Engine 8 | 1 1 6 . Core . | . . . . Reactor . | . . . . Propulsion 13 | 2 . 7 4 Treads . | . . . . Leg 7 | 2 . 5 . Wheel 2 | . . 2 . Hover . | . . . . Flight 4 | . . . 4 Utility 8 | 1 3 2 2 Device 4 | . . 2 2 Storage 3 | 1 2 . . Processor 1 | . 1 . . Hackware . | . . . . Protection . | . . . . Artifact . | . . . . Weapon 15 | 2 4 8 1 Energy Gun 5 | 2 2 1 . Energy Cannon 3 | . . 2 1 Ballistic Gun . | . . . . Ballistic Cannon . | . . . . Launcher 4 | . 2 2 . Special Weapon . | . . . . Impact Weapon 3 | . . 3 . Slashing Weapon . | . . . . Piercing Weapon . | . . . . Special Melee Weapon . | . . . . Unidentified Prototypes 1 | . . 1 . Parts Lost 11 | . 1 9 1 Power 2 | . . 2 . Propulsion 6 | . 1 4 1 Utility 1 | . . 1 . Weapon 2 | . . 2 . Highest Loss Streak 4 | . 1 4 1 To Critical Strikes . | . . . . Average Slot Usage (%) 86 | . 87 81 96 Engine 15 | . 14 15 18 Leg 16 | . 21 16 2 Wheel 1 | . . 3 . Flight 2 | . . . 21 Device 2 | . . 2 8 Storage 12 | . 15 11 9 Processor 9 | . 8 11 9 Energy Gun 8 | . 17 1 . Energy Cannon 3 | . . 4 9 Launcher 7 | . 9 5 9 Impact Weapon 5 | . . 9 9 Peak Build Rating 29 | 6 9 14 29 Average Rating 10 | 4 6 10 25 On Entrance 6 | . 6 6 14 Naked Turns . | . . . . Heaviest Build 27 | 13 20 23 27 Greatest Support 26 | 20 20 26 23 Greatest Overweight (x) 8 | 3 1 5 8 Average Overweight (x) . | . . . 1 Largest Inventory Capacity 25 | 8 25 8 8 Average Capacity 8 | 7 8 8 8 Most Carried 8 | 2 8 8 8 Average Carried 6 | 1 5 6 7 Final Capacity 8 | 8 8 8 8 Final Carried 8 | 2 7 7 8 Class Distribution -------------------- 83% | Mutant 16% | Scavenger-Mutant Dominant Class ---------------- Mutant | -10/Materials Mutant | -9/Materials Mutant | -8/Materials Resources | -11 -10 -9 -8 ----------- Run | Yrd Mat Mat Mat Matter Collected 768 | 69 330 369 . Remotely . | . . . . Salvage Created 1199 | . 430 712 57 Parts 83 | . 22 54 7 Haulers Intercepted 2 | . . 2 . Recyclers Shooed 4 | . 1 3 . Parts Field Recycled . | . . . . Retrieved Matter . | . . . . Parts Self-Destructed . | . . . . Prevented . | . . . . Kills | -11 -10 -9 -8 ------- Run | Yrd Mat Mat Mat Combat Hostiles Destroyed 29 | . 10 14 5 Melee 3 | . . 3 . Guns 2 | . 1 1 . Cannons 2 | . . 2 . AOE 20 | . 9 6 5 Classes Destroyed 10 | . 4 5 1 Worker 4 | . . 3 1 Builder 2 | . 1 1 . Hauler 2 | . . 2 . Recycler 1 | . 1 . . Operator 1 | . . 1 . Watcher 6 | . 2 4 . Swarmer 4 | . . . 4 Grunt 21 | . 10 10 1 Duelist 1 | . . 1 . Sentry 3 | . . 3 . Best Kill Streak 9 | . 9 8 4 Combat Bots Only 7 | . 7 3 4 Max Kills in Single Turn 3 | . 3 3 2 Gunslinging . | . . . . Exploded 2 | . 2 1 1 Melee 1 | . . 1 . Uniques/NPCs Destroyed . | . . . . Combat | -11 -10 -9 -8 -------- Run | Yrd Mat Mat Mat Hostile Shots Fired 172 | . 37 105 30 Missed 55 | . 11 33 11 Damage Taken 1692 | . 361 1017 314 Core 305 | . 59 230 16 Absorbed by Shields . | . . . . Core Remaining (%) 72 | 100 76 42 . Volleys Fired 87 | . 29 49 9 Largest 2 | . 2 2 2 Hottest 105 | . 105 98 98 Shots Fired 116 | . 44 54 18 Gun 50 | . 31 19 . Cannon 29 | . . 20 9 Launcher 37 | . 13 15 9 Special . | . . . . Kinetic . | . . . . Thermal 49 | . 3 37 9 Explosive 37 | . 13 15 9 Electromagnetic 30 | . 28 2 . Robot Hit Streak 6 | . 6 5 6 Robot Miss Streak 3 | . 2 3 2 Penetration Max . | . . . . Secondary Targets . | . . . . Shots Hit Robots 85 | . 25 49 11 Core Hits 67 | . 23 32 12 Critical Kills 2 | . . 2 . Critical Parts Destroyed 3 | . . 2 1 Critical Strikes 7 | . 1 5 1 Burn 1 | . . 1 . Corrupt 1 | . 1 . . Smash 5 | . . 4 1 Melee Attacks 27 | . . 26 1 Impact 27 | . . 26 1 Slashing . | . . . . Piercing . | . . . . Sneak Attacks 2 | . . 2 . Combat Hostiles . | . . . . Follow-up Attacks . | . . . . Damage Inflicted 3491 | . 1048 1688 755 Guns 526 | . 305 221 . Cannons 246 | . . 163 83 Explosions 2111 | . 740 722 649 Melee 605 | . . 582 23 Ramming 3 | . 3 . . Kinetic . | . . . . Thermal 556 | . 107 366 83 Explosive 2034 | . 663 722 649 Electromagnetic 293 | . 275 18 . Impact 605 | . . 582 23 Slashing . | . . . . Piercing . | . . . . Highest Corruption 2 | . . 2 . Average Corruption 2 | . . 2 . Corruption Purged . | . . . . Corruption Blocked . | . . . . Effects 6 | . . 6 . Message Errors 2 | . . 2 . Heat Flow Errors 2 | . . 2 . Data Loss (major) 2 | . . 2 . Overload Shots . | . . . . Overflow Damage 236 | . . 177 59 Projectiles . | . . . . Explosions 129 | . . 93 36 Melee 107 | . . 84 23 Knockbacks 2 | . . 2 . Impact 2 | . . 2 . Kinetic . | . . . . Secondary . | . . . . Self-Inflicted Damage 317 | . 50 151 116 Shots 13 | . 3 4 6 Rammed . | . . . . Targets Rammed 1 | . 1 . . Kicked 1 | . 1 . . Crushed . | . . . . Highest Temperature 353 | . 147 216 353 Average Temperature 71 | . 37 64 157 Received Heat Transfer 711 | . 192 429 90 Siege Activations . | . . . . Robots Corrupted 2 | . . 2 . Combat Hostiles 2 | . . 2 . Parts Fried 3 | . . 3 . Impact Corruptions 6 | . . 5 1 Robots Melted . | . . . . Combat Hostiles . | . . . . Parts Melted 4 | . 1 3 . Heat Transferred 1223 | . 224 851 148 Parts Sabotaged . | . . . . Parts Stolen . | . . . . Parts Stripped . | . . . . Power Chain Reactions 2 | . 2 . . Alert | -11 -10 -9 -8 ------- Run | Yrd Mat Mat Mat Peak Influence 596 | . 445 596 403 Initial 206 | . . 105 206 Average 283 | . 255 355 245 Maximum Alert Level 2 | . 2 2 2 Low Security (%) 28 | 100 25 29 . Level 1 45 | . 57 24 97 Level 2 26 | . 17 46 2 Level 3 . | . . . . Level 4 . | . . . . Level 5 . | . . . . High Security . | . . . . Max Security . | . . . . Squads Dispatched 2 | . 2 . . Investigation 2 | . 2 . . Extermination . | . . . . Reinforcement . | . . . . Assault . | . . . . Garrison . | . . . . Intercept . | . . . . Searches Triggered . | . . . . Construction Impeded . | . . . . Haulers Reinforced . | . . . . Active Scanning Responses . | . . . . Cargo Convoy Interrupts . | . . . . Stealth | -11 -10 -9 -8 --------- Run | Yrd Mat Mat Mat Distress Signals 5 | . 2 3 . Communications Jammed . | . . . . Distress Signals . | . . . . Times Spotted 47 | . 13 25 9 Peak Tracking Total 6 | . 5 6 5 Tactical Retreats 3 | . 1 1 1 Traps | -11 -10 -9 -8 ------- Run | Yrd Mat Mat Mat Traps Triggered 1 | . . 1 . Indirectly . | . . . . Trap Hack Attempts . | . . . . Triggered . | . . . . Disarmed . | . . . . Reprogrammed . | . . . . Reused . | . . . . Traps Extracted . | . . . . Installed . | . . . . Triggered . | . . . . Machines | -11 -10 -9 -8 ---------- Run | Yrd Mat Mat Mat Machines Disabled 6 | . 1 5 . Max in Single Turn 2 | . 1 2 . Machines Repaired . | . . . . Machines Dismantled . | . . . . Machines Sabotaged . | . . . . Overloaded Fab Kills . | . . . . Hacking | -11 -10 -9 -8 --------- Run | Yrd Mat Mat Mat Machines Accessed 7 | . 3 4 . Terminals 4 | . 2 2 . Fabricators . | . . . . Repair Stations . | . . . . Recycling Units 1 | . 1 . . Scanalyzers 2 | . . 2 . Garrison Access . | . . . . Total Hacks 21 | . 11 10 . Successful 12 | . 9 3 . Failed 9 | . 2 7 . Catastrophic 1 | . . 1 . Database Lockouts . | . . . . Manual . | . . . . Terminals 15 | . 8 7 . Fabricators . | . . . . Repair Stations . | . . . . Recycling Units 3 | . 3 . . Scanalyzers 3 | . . 3 . Garrison Access . | . . . . Terminal Hacks 8 | . 7 1 . Record 1 | . 1 . . Prototype ID Bank 1 | . 1 . . Locate Traps 1 | . 1 . . Dispatch Records 1 | . 1 . . Investigation Status 1 | . 1 . . Reinforcement Status 1 | . 1 . . Zone Layout 2 | . 1 1 . Fabricator Hacks . | . . . . Repair Station Hacks . | . . . . Recycling Unit Hacks 2 | . 2 . . Report Inventory 1 | . 1 . . Retrieve Matter 1 | . 1 . . Scanalyzer 2 | . . 2 . Insert Component 1 | . . 1 . Analyze 1 | . . 1 . Garrison Access Hacks . | . . . . Unauthorized Hacks . | . . . . Terminals . | . . . . Fabricators . | . . . . Repair Stations . | . . . . Recycling Units . | . . . . Scanalyzers . | . . . . Garrison Access . | . . . . Data Cores Recovered 1 | . . 1 . Used . | . . . . Hacking Detections 4 | . 3 1 . Full Trace Events 2 | . 2 . . Feedback Events . | . . . . Feedback Blocked . | . . . . Robot Schematics Acquired . | . . . . Robots Built . | . . . . Authchips . | . . . . Time . | . . . . Total Robot Build Rating . | . . . . Part Schematics Acquired 1 | . . 1 . Parts Built . | . . . . Authchips . | . . . . Time . | . . . . Total Part Build Rating . | . . . . Parts Repaired . | . . . . Time . | . . . . Parts Recycled . | . . . . Recycled Matter . | . . . . Retrieved Matter . | . . . . Retrieved Components . | . . . . Parts Scanalyzed 1 | . . 1 . Part Schematics Acquired 1 | . . 1 . Parts Damaged . | . . . . Bothacking | -11 -10 -9 -8 ------------ Run | Yrd Mat Mat Mat Used RIF Installer . | . . . . Robots Hacked . | . . . . Non-combat . | . . . . Combat . | . . . . Robot Hacks Applied . | . . . . Relay Couplers Released . | . . . . Fabnet Peak Effective % . | . . . . Robots Rewired . | . . . . Allies Hacked . | . . . . Hacks Repelled . | . . . . Allies | -11 -10 -9 -8 -------- Run | Yrd Mat Mat Mat Total Allies . | . . . . Largest Group . | . . . . Highest-Rated Group . | . . . . Highest-Rated Ally . | . . . . Total Orders . | . . . . Ally Attacks . | . . . . Total Damage . | . . . . Kills . | . . . . Allies Corrupted . | . . . . Allies Melted . | . . . . Intel | -11 -10 -9 -8 ------- Run | Yrd Mat Mat Mat Robot Analysis Total . | . . . . Derelict Logs Recovered . | . . . . Drone Launches . | . . . . Drone Recoveries . | . . . . Exploration | -11 -10 -9 -8 ------------- Run | Yrd Mat Mat Mat Turns Passed 1492 | 80 572 647 193 Spaces Moved 806 | 58 313 340 95 Core 15 | 11 . 3 1 Treads . | . . . . Legs 645 | 47 313 268 17 Wheels 69 | . . 69 . Hover . | . . . . Flight 77 | . . . 77 Fastest Speed 50 | 50 120 90 114 Average Speed 132 | 120 149 119 130 Slowest Speed 450 | 200 190 300 450 Overloaded Moves . | . . . . Propulsion Burnouts . | . . . . Robots Hopped . | . . . . Cave-ins Triggered . | . . . . Exploration Rate (%) 25 | 4 51 37 10 Regions Visited 3 Branch Regions . Pre-discovered Areas . | . . . . Known Exits Taken . | . . . . Unknown Exits Taken 3 | 1 1 1 . Scrap Searched . | . . . . Spaces Dug . | . . . . Terrain Destroyed 257 | . 76 111 70 Melee . | . . . . Projectile 1 | . . 1 . AOE 256 | . 76 110 70 Terrain Rammed . | . . . . Walls Destroyed . | . . . . Machines Disabled . | . . . . Actions | -11 -10 -9 -8 --------- Run | Yrd Mat Mat Mat Total 1057 | 65 372 477 143 Wait 55 | . 6 23 26 Move 803 | 57 312 339 95 Hop . | . . . . Pick Up 18 | 2 8 8 . Fast Attach 23 | 6 3 8 6 Attach 6 | . 1 4 1 Detach 5 | . 3 . 2 Swap 15 | . 4 11 . Drop 17 | . 5 9 3 Fire 87 | . 29 49 9 Melee 27 | . . 26 1 Ram . | . . . . Kick 1 | . 1 . . Crush . | . . . . Escape Stasis . | . . . . Rewire . | . . . . Trap . | . . . . Miscellaneous . | . . . . Route ------- -11/Scrapyard -10/Materials -9/Materials -8/Materials History --------- Turn | Location | Event 2 | -11/Scrapyard | Discovered new exit (range 16) 81 | -11/Scrapyard | Entered Materials 288 | -10/Materials | Destroyed 7 combat bots 300 | -10/Materials | Build established: Mutant 627 | -10/Materials | Discovered new exit (range 9) 653 | -10/Materials | Entered another Materials area 653 | -9/Materials | Evolved 2 slots: Power x1, Utility x1 967 | -9/Materials | Lost 3 parts (1p2n) 1107 | -9/Materials | Lost 4 parts (1p2n1u) 1166 | -9/Materials | Core integrity fell below 50% 1282 | -9/Materials | Discovered new exit (range 15) 1300 | -9/Materials | Entered another Materials area 1300 | -8/Materials | Evolved 2 slots: Propulsion x1, Weapon x1 1493 | -8/Materials | Self-destructed Last Messages --------------- 01455_ K-01 Serf collects debris. 01459_ U-05 Engineer lays Concrete. 01461_ Destroyed Lgt. Ion Engine. 01461_ S-10 Pest destroyed. 01475_ The unstable cave ceiling collapses. 01478_ L-31 Rogue suffers critical hit (Smash). 01478_ Destroyed Katana. 01478_ L-31 Rogue system corrupted by crushing effect. 01479_ K-01 Serf collects debris. 01481_ Destroyed Melee Analysis Suite. 01482_ Xenon Bombardment Thruster destroyed. 01484_ G-47 Trooper destroyed. 01484_ K-01 Serf destroyed. 01485_ The unstable cave ceiling collapses. 01490_ Critical hit (Burn: +37). 01492_ U-05 Engineer lays Concrete. 01493_ The unstable cave ceiling collapses. 01493_ Wheel crushed. 01493_ U-05 Engineer lays Concrete. Map ----- +----------------------------------------------------+ | ????????????????????????????????????????????????? | | ????????????????????????????????????????????????? | | ????????????????????????????????????????????????? | | ????????????????????????????????????????????????? | | ????????????????????????????????????????????????? | | ????????????????????????????????????????????????? | | ????????????????????????????????????????????????? | | ??????????????????? ?????????????????????????? | | ??????????????????+ ?????????????????????????? | | ??????????????????# ?????????????????????????? | | ??????????????????# / ????????????????????????? | | ??????????????????# ????????????????#####???? | | ??????????????????# ????????????????# #???? | | ??????????????????# [ #####???????????# #???? | | ??????????????????? ###?????????# #???? | | ?????????????????####u# #?######### #???? | | ?????????????????? #?#!! !!## #???? | | ???????????????????? ###! =!!## #???? | | ?????????????????????? ## ## ##??? | | ??????????????????#??? ## # #??? | | ??????????????????# ??# w ## ! #??? | | ??????????????????# ?# g% ## #??? | | ??????????????????? # ## #??? | | ????????????????????? # #### #??? | | ??????????????????????# # ###########?? | | ???????????????????????# @ # ! #?? | | ???????????????????????## # #?? | | ????????????????????????# [ # #?? | | ???????????????????????? [ + """ #?? | | ????????????????????????# # """"" #?? | | ????????????????????????## # """"" !#?? | | ?????????????????????????## ### # """"" #?? | | ?????????????????????????? ! ?# u # """ #?? | | ?????????????????????????? # ###########?? | | ??????????????????????????" """ # #???????????? | | ??????????????????????????" """ # #???????????? | | ??????????????????????????" """?# #???????????? | | ?????????????????????????? ???# #???????????? | | ??????????????????????????? ????# #???????????? | | ??????????????????????????? ????# #???????????? | | ????????????????????????????????# #???????????? | | ???????????????????????????????? #???????????? | | ???????????????????????????????? +???????????? | | ???????????????????????????????? #???????????? | | ????????????????????????????????# #???????????? | | ????????????????????????????????? #???????????? | | ????????????????????????????????? ????????????? | | ????????????????????????????????????????????????? | | ????????????????????????????????????????????????? | | ????????????????????????????????????????????????? | +----------------------------------------------------+ Best States ------------- Heat Dissipation 41 Energy Generation 17 Energy Capacity 415 Matter Stores 300 Matter Capacity 300 Sight Range 16 Terrain Scan Density 10 ECM Strength 1 Evasion (%) 55 Targeting Accuracy 5 Trap Extractor Capacity 6 Item Schematics ----------------- Particle Gun | -9/Materials | Scanalyzed Robot Schematics ------------------ None Fabricated ------------ Nothing Alien Tech Used ----------------- None Achievements -------------- None Challenges ------------ None Game ------ Seed WarpHypervelocityExtractor Manual? 0 Play Time 00:18:47 Cumulative 5.5 hours Start 2024.11.13 @ 23:15:28 End 2024.11.14 @ 15:51:57 Sessions 3 Manual Loads 0 Difficulty Rogue Special Mode None Game No. 23 Rogue 23 Adventurer 0 Explorer 0 Win Type - Total 0 Types 0/0/0/0/0/0/0/0/0 Lore% 5 Gallery% 12 Achievement% 10 Wizard Run 0 Options --------- Layout 1 ASCII 0 Keyboard 1 Movement Numpad Keybinds 0 Fullscreen 1 Font 24/Smallcaps Map View 50x35 Zoom Use 0% Tactical HUD 1 Map Filters NONE Filters NONE Steam 1 RUN: 5c7cafa9-0308-4017-b4f3-b4016bd36219